Cogmind - Beta 15 @@@ ROGUE MODE // 2025.08.25 @ 14:35:00 Player: BlobtheGreat Result: Destroyed by G-47 Trooper with Particle Gun Performance ------------- Evolutions (1) 500 Regions Visited (5) 1000 Robots Destroyed (114) 570 Value Destroyed (2341) 2341 Prototype IDs (3) 60 Alien Tech Used (0) 0 Bonus (0) 0 TOTAL SCORE: 4471 Bonus ------- None Cogmind --------- Core Integrity 0/400 Matter 132/300 Energy 278/280 System Corruption 0% Temperature Cool (56) Movement Walking (190) Ox1 Location -8/Mines Parts ------- > --- POWER (1) -------- Heavy Ion Engine > --- PROPULSION (3) --- Improved Aluminum Leg Improved Aluminum Leg Carbon-fiber Leg > --- UTILITY (3) ------ High-capacity Storage Unit Core Shielding Hardlight Generator > --- WEAPON (2) ------- Flak Cannon Flak Cannon > --- INVENTORY (20) --- Heavy Ion Engine Heavy Ion Engine Light Nuclear Core Aluminum Leg Aluminum Leg Aluminum Leg Flexi-carbon Leg Flexi-carbon Leg High-capacity Matter Pod (200) Structural Scanner Seismic Detector Seismic Detector Hardened Light Armor Plating Improved Assault Rifle Improved Assault Rifle Improved Assault Rifle Rocket Launcher Rocket Launcher Flail Peak State ------------ > --- POWER ------------ Heavy Ion Engine > --- PROPULSION ------- Improved Aluminum Leg Improved Aluminum Leg Carbon-fiber Leg > --- UTILITY ---------- High-capacity Storage Unit Recoil Stabilizer Core Shielding > --- WEAPON ----------- Flak Cannon Bore Cannon > --- INVENTORY -------- Heavy Ion Engine Heavy Ion Engine Light Nuclear Core Flexi-carbon Leg Flexi-carbon Leg High-capacity Matter Pod Structural Scanner Seismic Detector Seismic Detector Hardened Light Armor Plating Hardlight Generator Improved Assault Rifle Improved Assault Rifle Improved Assault Rifle Flak Cannon Rocket Launcher Rocket Launcher Flail [Rating: 27] Favorites ----------- Power Heavy Ion Engine Engine Heavy Ion Engine Propulsion Aluminum Leg Treads Improved Treads Leg Aluminum Leg Wheel Compact Wheel Utility High-capacity Storage Unit Device Seismic Detector Storage High-capacity Storage Unit Processor Targeting Computer Protection Hardened Light Armor Plating Weapon Improved Assault Rifle Ballistic Gun Improved Assault Rifle Ballistic Cannon Flak Cannon Launcher Rocket Launcher Impact Weapon Flail Build | -11 -10 -9 -9 -9 -8 ------- Run | Yrd Mat Mat Min Exi Min Slots Evolved 2 | . . 2 . . . Power . | . . . . . . Propulsion 1 | . . 1 . . . Utility 1 | . . 1 . . . Weapon . | . . . . . . Parts Attached 66 | 8 8 32 4 2 12 Power 6 | 2 . 4 . . . Engine 6 | 2 . 4 . . . Core . | . . . . . . Reactor . | . . . . . . Propulsion 25 | 2 6 10 3 1 3 Treads 3 | . 2 1 . . . Leg 20 | 2 2 9 3 1 3 Wheel 2 | . 2 . . . . Hover . | . . . . . . Flight . | . . . . . . Utility 17 | 2 2 7 . 1 5 Device 5 | 1 . 2 . . 2 Storage 4 | 1 2 . . 1 . Processor 1 | . . 1 . . . Hackware . | . . . . . . Protection 7 | . . 4 . . 3 Artifact . | . . . . . . Weapon 18 | 2 . 11 1 . 4 Energy Gun . | . . . . . . Energy Cannon . | . . . . . . Ballistic Gun 12 | 2 . 9 1 . . Ballistic Cannon 4 | . . 1 . . 3 Launcher 1 | . . . . . 1 Special Weapon . | . . . . . . Impact Weapon 1 | . . 1 . . . Slashing Weapon . | . . . . . . Piercing Weapon . | . . . . . . Special Melee Weapon . | . . . . . . Unidentified Prototypes 3 | . . 3 . . . Parts Lost 23 | . 1 13 . . 9 Power 3 | . 1 2 . . . Propulsion 8 | . . 5 . . 3 Utility 6 | . . 3 . . 3 Weapon 6 | . . 3 . . 3 Highest Loss Streak 4 | . 1 4 . . 4 To Critical Strikes . | . . . . . . Average Backups 18 | 4 13 18 20 20 18 Power 1 | . . 1 2 2 2 Propulsion 3 | 3 6 3 2 2 2 Utility 5 | . 1 5 7 7 5 Weapon 7 | . 3 7 8 9 7 Tool/Special . | . . . . . . Unused Backups 26 | . . 13 2 . 11 Power 4 | . . 2 . . 2 Propulsion 4 | . . 1 . . 3 Utility 3 | . . . 1 . 2 Weapon 15 | . . 10 1 . 4 Tool/Special . | . . . . . . Average Slot Usage (%) 99 | . 99 98 100 100 97 Engine 11 | . 13 10 11 11 11 Leg 28 | . 13 26 33 33 31 Wheel 3 | . 14 4 . . . Device 11 | . 14 10 11 11 11 Storage 11 | . 14 11 11 11 11 Protection 9 | . . 9 11 11 10 Ballistic Gun 19 | . 28 17 22 22 7 Ballistic Cannon 2 | . . 3 . . 14 Peak Build Rating 27 | 7 9 21 26 26 27 Average Rating 19 | 6 8 17 23 25 24 On Entrance 14 | . 7 9 19 26 24 Naked Turns . | . . . . . . Heaviest Build 66 | 13 49 63 60 60 66 Greatest Support 43 | 20 32 33 43 43 41 Greatest Overweight (x) 4 | . 2 2 1 1 4 Average Overweight (x) 1 | . . 1 1 1 1 Largest Inventory Capacity 20 | 8 20 20 20 20 20 Average Capacity 19 | 7 16 20 20 20 20 Most Carried 20 | 7 19 20 20 20 20 Average Carried 18 | 5 13 18 20 20 18 Final Capacity 20 | 8 20 20 20 20 20 Final Carried 20 | 7 18 20 20 20 19 Class Distribution -------------------- 82% | Mutant 17% | Scavenger-Mutant Dominant Class ---------------- Mutant | -10/Materials Mutant | -9/Materials Mutant | -9/Mines Mutant | -9/Exiles Scavenger-Mutant | -8/Mines Resources | -11 -10 -9 -9 -9 -8 ----------- Run | Yrd Mat Mat Min Exi Min Matter Collected 2851 | 392 277 1270 368 . 544 Remotely . | . . . . . . Salvage Created 4464 | 252 291 1935 1382 . 604 Parts 232 | 24 23 115 44 . 26 Haulers Intercepted 6 | . 1 5 . . . Recyclers Shooed 6 | . 1 3 . . 2 Parts Field Recycled . | . . . . . . Retrieved Matter . | . . . . . . Parts Self-Destructed . | . . . . . . Prevented . | . . . . . . Kills | -11 -10 -9 -9 -9 -8 ------- Run | Yrd Mat Mat Min Exi Min Combat Hostiles Destroyed 62 | . 10 32 4 . 16 Guns 48 | . 10 28 4 . 6 Cannons 13 | . . 4 . . 9 AOE 1 | . . . . . 1 Classes Destroyed 12 | 3 3 4 . . 2 Worker 7 | 1 . 4 2 . . Builder 2 | . . 1 . . 1 Tunneler 10 | 8 . 1 . . 1 Hauler 6 | . 1 5 . . . Recycler 23 | 1 . 4 17 . 1 Watcher 4 | . . 4 . . . Swarmer 17 | . 6 4 4 . 3 Grunt 32 | . 4 18 . . 10 Brawler 1 | . . . . . 1 Duelist 2 | . . 1 . . 1 Sentry 9 | . . 9 . . . Hunter 1 | . . . . . 1 Best Kill Streak 8 | 8 3 3 4 . 4 Combat Bots Only 3 | . 3 3 3 . 3 Max Kills in Single Turn 2 | 1 1 1 1 . 2 Gunslinging . | . . . . . . Exploded 1 | . . . . . 1 Melee . | . . . . . . Uniques/NPCs Destroyed . | . . . . . . Combat | -11 -10 -9 -9 -9 -8 -------- Run | Yrd Mat Mat Min Exi Min Hostile Shots Fired 382 | . 51 208 19 . 104 Missed 105 | . 18 60 6 . 21 Hits 277 | . 33 148 13 . 83 Melee 16 | . . 9 . . 7 Projectile 261 | . 33 139 13 . 76 Critical Strikes 11 | . . 8 . . 3 Damage Taken 3653 | . 311 1943 114 . 1285 Core 471 | . 65 244 19 . 143 Absorbed by Shields 60 | . . . . . 60 Redirected to Shielding 17 | . . . . . 17 Core Remaining (%) 87 | 100 74 . . . . Volleys Fired 305 | 28 44 125 53 . 55 Largest 2 | 2 2 2 2 . 2 Hottest 85 | 40 40 60 46 . 85 Shots Fired 610 | 56 88 250 106 . 110 Gun 511 | 56 88 229 106 . 32 Cannon 98 | . . 21 . . 77 Launcher 1 | . . . . . 1 Special . | . . . . . . Kinetic 609 | 56 88 250 106 . 109 Thermal . | . . . . . . Explosive 1 | . . . . . 1 Electromagnetic . | . . . . . . Robot Hit Streak 28 | 7 8 28 6 . 7 Robot Miss Streak 11 | 3 4 6 5 . 11 Penetration Max . | . . . . . . Secondary Targets 1 | . . . 1 . . Max Gunslinging Chain 1 | . . . 1 . . Shots Hit Robots 409 | 32 45 198 58 . 76 Core Hits 202 | 14 18 76 30 . 64 Critical Kills 3 | 1 . . . . 2 Critical Parts Destroyed 7 | . . 2 1 . 4 Critical Strikes 10 | 1 . 2 1 . 6 Destroy 8 | 1 . . 1 . 6 Smash 2 | . . 2 . . . Melee Attacks 12 | . . 12 . . . Impact 12 | . . 12 . . . Slashing . | . . . . . . Piercing . | . . . . . . Sneak Attacks 6 | . . 6 . . . Combat Hostiles . | . . . . . . Follow-up Attacks . | . . . . . . Damage Inflicted 6840 | 370 480 3607 1010 . 1373 Guns 4915 | 370 480 2721 933 . 411 Cannons 1214 | . . 327 . . 887 Explosions 75 | . . . . . 75 Melee 466 | . . 466 . . . Ramming 170 | . . 93 77 . . Kinetic 6129 | 370 480 3048 933 . 1298 Thermal . | . . . . . . Explosive 75 | . . . . . 75 Electromagnetic . | . . . . . . Impact 466 | . . 466 . . . Slashing . | . . . . . . Piercing . | . . . . . . Highest Corruption . | . . . . . . Average Corruption . | . . . . . . Corruption Purged . | . . . . . . Corruption Blocked . | . . . . . . Overload Shots . | . . . . . . Overflow Damage 344 | . . 344 . . . Projectiles . | . . . . . . Explosions . | . . . . . . Melee 344 | . . 344 . . . Knockbacks 28 | . . 6 2 . 20 Impact 2 | . . . 2 . . Kinetic 24 | . . 6 . . 18 Secondary 2 | . . . . . 2 Self-Inflicted Damage . | . . . . . . Shots . | . . . . . . Rammed . | . . . . . . Targets Rammed 26 | . . 11 15 . . Kicked 26 | . . 11 15 . . Crushed . | . . . . . . Highest Temperature 318 | . 18 46 . . 318 Average Temperature 48 | . 9 11 . . 78 Received Heat Transfer 1370 | . 78 741 . . 551 Siege Activations . | . . . . . . Martial Activations . | . . . . . . Shielding Activations . | . . . . . . Robots Disrupted . | . . . . . . Combat Hostiles . | . . . . . . Robots Corrupted 1 | . . 1 . . . Combat Hostiles . | . . . . . . Parts Fried 5 | . . 5 . . . Impact Corruptions 8 | . . 8 . . . Robots Melted . | . . . . . . Combat Hostiles . | . . . . . . Parts Melted . | . . . . . . Heat Transferred . | . . . . . . Parts Sabotaged . | . . . . . . Parts Stolen . | . . . . . . Parts Stripped . | . . . . . . Power Chain Reactions . | . . . . . . Alert | -11 -10 -9 -9 -9 -8 ------- Run | Yrd Mat Mat Min Exi Min Maximum Alert Level 1 | . . 1 . . . Low Security (%) 83 | 100 100 61 100 . 100 Level 1 16 | . . 38 . . . Level 2 . | . . . . . . Level 3 . | . . . . . . Level 4 . | . . . . . . Level 5 . | . . . . . . High Security . | . . . . . . Max Security . | . . . . . . Peak Influence 379 | 10 102 379 147 . 142 Initial 147 | . . 9 147 . . Average 93 | 1 30 159 45 . 67 Influence Increases 2134 | 50 308 1069 260 . 447 Destroy 0b10 Robot/C 1240 | . 200 640 80 . 320 Destroy 0b10 Robot/NC 260 | 50 5 95 95 . 15 Destroy Leader 300 | . 52 178 10 . 60 Successful Hack 49 | . 6 43 . . . Select Force Hacks 30 | . . 30 . . . Disable Machine 30 | . . . 15 . 15 Destroy Structure 30 | . . 8 . . 22 Partial Spotted 15 | . 15 . . . . Lose Combat Pursuer 180 | . 30 75 60 . 15 Influence Decreases 2021 | 50 285 715 614 23 334 Entered New Map 267 | . . 14 230 23 . Time Decay 1551 | 50 275 578 384 . 264 Lost Part 183 | . 10 103 . . 70 Purge Threat 20 | . . 20 . . . Squads Dispatched 6 | . 3 2 . . 1 Investigation 2 | . . 2 . . . Extermination . | . . . . . . Reinforcement 4 | . 3 . . . 1 Assault . | . . . . . . Garrison . | . . . . . . Intercept . | . . . . . . Searches Triggered . | . . . . . . Construction Impeded 1 | . . . . . 1 Haulers Reinforced . | . . . . . . Active Scanning Responses . | . . . . . . Cargo Convoy Interrupts . | . . . . . . Stealth | -11 -10 -9 -9 -9 -8 --------- Run | Yrd Mat Mat Min Exi Min Distress Signals 9 | . 4 5 . . . Communications Jammed . | . . . . . . Distress Signals . | . . . . . . Times Spotted 93 | . 17 48 7 . 21 Peak Tracking Total 5 | . 4 5 4 . 3 Tactical Retreats 8 | . 2 2 3 . 1 Traps | -11 -10 -9 -9 -9 -8 ------- Run | Yrd Mat Mat Min Exi Min Traps Triggered 1 | . . 1 . . . Indirectly . | . . . . . . Trap Hack Attempts . | . . . . . . Triggered . | . . . . . . Disarmed . | . . . . . . Reprogrammed . | . . . . . . Reused . | . . . . . . Traps Extracted . | . . . . . . Installed . | . . . . . . Triggered . | . . . . . . Machines | -11 -10 -9 -9 -9 -8 ---------- Run | Yrd Mat Mat Min Exi Min Machines Disabled 3 | . . 1 1 . 1 Max in Single Turn 1 | . . 1 1 . 1 Machines Repaired . | . . . . . . Machines Dismantled . | . . . . . . Machines Sabotaged . | . . . . . . Overloaded Fab Kills . | . . . . . . Hacking | -11 -10 -9 -9 -9 -8 --------- Run | Yrd Mat Mat Min Exi Min Machines Accessed 16 | . 4 11 . 1 . Terminals 14 | . 4 10 . . . Fabricators . | . . . . . . Repair Stations . | . . . . . . Recycling Units 1 | . . 1 . . . Scanalyzers . | . . . . . . Garrison Access . | . . . . . . Total Hacks 39 | . 9 29 . 1 . Successful 15 | . 1 13 . 1 . Failed 23 | . 8 15 . . . Catastrophic 10 | . 5 5 . . . Database Lockouts 1 | . . 1 . . . Manual 33 | . 9 24 . . . Terminals 37 | . 9 28 . . . Fabricators . | . . . . . . Repair Stations . | . . . . . . Recycling Units 1 | . . 1 . . . Scanalyzers . | . . . . . . Garrison Access . | . . . . . . Terminal Hacks 7 | . 1 5 . 1 . Record 1 | . . . . 1 . Robot Analysis 2 | . 1 1 . . . Branch Access Points 1 | . . 1 . . . Unreport Threat 1 | . . 1 . . . Registered Components 1 | . . 1 . . . Zone Layout 1 | . . 1 . . . Fabricator Hacks . | . . . . . . Repair Station Hacks . | . . . . . . Recycling Unit Hacks . | . . . . . . Scanalyzer . | . . . . . . Garrison Access Hacks . | . . . . . . Unauthorized Hacks 8 | . . 8 . . . Terminals 7 | . . 7 . . . Botnet 2 | . . 2 . . . Skim 5 | . . 5 . . . Fabricators . | . . . . . . Repair Stations . | . . . . . . Recycling Units 1 | . . 1 . . . Tunnel 1 | . . 1 . . . Scanalyzers . | . . . . . . Garrison Access . | . . . . . . Data Cores Recovered . | . . . . . . Used . | . . . . . . Hacking Detections 14 | . 4 10 . . . Full Trace Events . | . . . . . . Feedback Events . | . . . . . . Feedback Blocked . | . . . . . . Robot Schematics Acquired . | . . . . . . Robots Built . | . . . . . . Authchips . | . . . . . . Time . | . . . . . . Total Robot Build Rating . | . . . . . . Part Schematics Acquired . | . . . . . . Parts Built . | . . . . . . Authchips . | . . . . . . Time . | . . . . . . Total Part Build Rating . | . . . . . . Parts Repaired . | . . . . . . Time . | . . . . . . Parts Recycled . | . . . . . . Recycled Matter . | . . . . . . Retrieved Matter . | . . . . . . Retrieved Components . | . . . . . . Parts Scanalyzed . | . . . . . . Part Schematics Acquired . | . . . . . . Parts Damaged . | . . . . . . Bothacking | -11 -10 -9 -9 -9 -8 ------------ Run | Yrd Mat Mat Min Exi Min Used RIF Installer . | . . . . . . Robots Hacked . | . . . . . . Non-combat . | . . . . . . Combat . | . . . . . . Robot Hacks Applied . | . . . . . . Relay Couplers Released . | . . . . . . Fabnet Peak Effective % . | . . . . . . Robots Rewired . | . . . . . . Allies Hacked . | . . . . . . Hacks Repelled . | . . . . . . Allies | -11 -10 -9 -9 -9 -8 -------- Run | Yrd Mat Mat Min Exi Min Total Allies . | . . . . . . Largest Group . | . . . . . . Highest-Rated Group . | . . . . . . Highest-Rated Ally . | . . . . . . Total Orders . | . . . . . . Ally Attacks . | . . . . . . Total Damage . | . . . . . . Kills . | . . . . . . Allies Corrupted . | . . . . . . Allies Melted . | . . . . . . Intel | -11 -10 -9 -9 -9 -8 ------- Run | Yrd Mat Mat Min Exi Min Active Infowar (turns) 7350 | 161 854 2976 2709 315 335 Seismic 7350 | 161 854 2976 2709 315 335 Robot Analysis Total 2 | . 1 1 . . . Derelict Logs Recovered 1 | . . . 1 . . Drone Launches . | . . . . . . Drone Recoveries . | . . . . . . Exploration | -11 -10 -9 -9 -9 -8 ------------- Run | Yrd Mat Mat Min Exi Min Turns Passed 8217 | 261 854 3364 2709 315 714 Spaces Moved 3886 | 139 559 1452 1321 165 250 Core 4 | 4 . . . . . Treads 3 | . . 3 . . . Legs 3161 | 135 216 1074 1321 165 250 Wheels 718 | . 343 375 . . . Hover . | . . . . . . Flight . | . . . . . . Fastest Speed 50 | 50 115 115 190 190 190 Average Speed 177 | 117 125 189 190 190 193 Slowest Speed 400 | 120 260 320 190 190 400 Overloaded Moves . | . . . . . . Propulsion Burnouts . | . . . . . . Robots Hopped . | . . . . . . Potential Cave-ins . | . . . . . . Cave-ins Triggered . | . . . . . . Exploration Rate (%) 62 | 6 82 95 99 49 42 Regions Visited 5 Branch Regions 3 Pre-discovered Areas 4 | . . 3 . 1 . Known Exits Taken 1 | . . 1 . . . Unknown Exits Taken 4 | 1 1 . 1 1 . Scrap Searched 1 | . . . 1 . . Spaces Dug 3 | . . 3 . . . Terrain Destroyed 33 | . . 3 . . 30 Melee 3 | . . 3 . . . Projectile 21 | . . . . . 21 AOE 9 | . . . . . 9 Terrain Rammed . | . . . . . . Walls Destroyed . | . . . . . . Machines Disabled . | . . . . . . Actions | -11 -10 -9 -9 -9 -8 --------- Run | Yrd Mat Mat Min Exi Min Total 4560 | 181 631 1809 1404 167 368 Wait 150 | . 7 99 1 . 43 Move 3881 | 138 558 1451 1320 164 250 Hop . | . . . . . . Pick Up 60 | 7 11 33 3 . 6 Fast Attach 20 | 7 . 10 . . 3 Attach 21 | . 1 13 . . 7 Detach 5 | . . 5 . . . Swap 36 | 1 8 16 5 2 4 Drop 44 | . 2 34 7 1 . Fire 305 | 28 44 125 53 . 55 Melee 12 | . . 12 . . . Ram . | . . . . . . Kick 26 | . . 11 15 . . Crush . | . . . . . . Escape Stasis . | . . . . . . Rewire . | . . . . . . Trap . | . . . . . . Miscellaneous . | . . . . . . Route ------- -11/Scrapyard -10/Materials (discovered 5 exits: *Mat x3 / [*Min] / [*Sub]) -9/Materials (discovered 4 exits: *Mat x3 / *Min) -9/Mines (discovered 4 exits: *Mat x2 / *Exi / [*Zio]) -9/Exiles -8/Mines History --------- Turn | Location | Event 7 | -11/Scrapyard | Discovered new exit (range 15) 262 | -11/Scrapyard | Entered Materials 303 | -10/Materials | Build established: Mutant 342 | -10/Materials | Discovered new exit (range 14) 451 | -10/Materials | Discovered new exit (range 14) 762 | -10/Materials | Derelicts attacked the area 834 | -10/Materials | Discovered new exit (range 11) 963 | -10/Materials | Discovered new exit (range 11) 1024 | -10/Materials | Discovered new exit (range 8) 1116 | -10/Materials | Entered another Materials area 1116 | -9/Materials | Evolved 2 slots: Propulsion x1, Utility x1 1399 | -9/Materials | Central database locked down 1414 | -9/Materials | Identified exit to Mines 1570 | -9/Materials | Discovered new exit (range 16) 1699 | -9/Materials | Learned location of Zion (-7) 1742 | -9/Materials | Identified exit to Materials 1756 | -9/Materials | Lost 4 parts (1p2n1w) 1774 | -9/Materials | Learned Storage garrison access intel 1795 | -9/Materials | Learned Recycling recycling unit intel 1807 | -9/Materials | Loaded intel: 14 trap records 1817 | -9/Materials | Learned Storage trap positions 1834 | -9/Materials | Learned Storage trap positions 2040 | -9/Materials | Build established: Scavenger-Mutant 2459 | -9/Materials | Build established: Mutant 2791 | -9/Materials | Build established: Scavenger-Mutant 3214 | -9/Materials | Lost 4 parts (2n1u1w) 3376 | -9/Materials | Core integrity fell below 50% 3466 | -9/Materials | Build established: Mutant 4480 | -9/Materials | Entered Mines 4490 | -9/Mines | Met a Derelict bent on vengeance 4684 | -9/Mines | Assembled infested the area 4689 | -9/Mines | Assisted by a Guerilla fighting off Assembled 4802 | -9/Mines | Received a Rocket Launcher from a helpful Derelict 5172 | -9/Mines | Deemed a non-threat by the Exiles lab entrance 5172 | -9/Mines | Discovered new exit (range 5) 5520 | -9/Mines | Discovered exit to Materials (range 9) 6026 | -9/Mines | Found a hidden stash of uninstalled traps 6128 | -9/Mines | A Derelict revealed a hidden shortcut to a safe place 6223 | -9/Mines | Learned Materials stockpile data 6230 | -9/Mines | Discovered exit to Materials (range 3) 7189 | -9/Mines | Entered Exiles 7235 | -9/Exiles | Met 8R-AWN 7267 | -9/Exiles | Met EX-HEX 7343 | -9/Exiles | Met EX-DEC 7482 | -9/Exiles | Discovered new exit (range 14) 7504 | -9/Exiles | Entered Mines 7565 | -8/Mines | Core integrity fell below 20% 7597 | -8/Mines | Lost 4 parts (2n2u) 7879 | -8/Mines | Build established: Scavenger-Mutant 8218 | -8/Mines | Destroyed by G-47 Trooper with Particle Gun Last Messages --------------- 07956_ K-01 Serf collects debris. 07957_ G-47 Trooper destroyed. 07968_ Acquired 26 matter. 07970_ Acquired 3 matter. 07974_ Acquired Aluminum Leg. 07978_ Acquired 35 matter. 07980_ Acquired 3 matter. 07983_ Acquired 44 matter. 08141_ G-47 Trooper destroyed. 08155_ B-36 Bruiser destroyed. 08155_ T-07 Excavator knocked back. 08155_ T-07 Excavator destroyed. 08158_ Acquired 38 matter. 08165_ G-47 Trooper knocked back. 08165_ G-47 Trooper destroyed. 08167_ K-01 Serf collects debris. 08170_ Acquired Aluminum Leg. 08173_ K-01 Serf collects debris. 08179_ Acquired 31 matter. 08216_ Critical hit (Burn: +28). Map ----- +----------------------------------------------------+ | | | | | | | | | | | | | | | | | | | | | | | | | | | ?????????????????????????????????????????????????? | | ?????????????????????????????????????????????????? | | ?????????????????????????????????????????????????? | | ?????????????????????????????????????????????????? | | ?????????????????????????????????????????????????? | | ?????????????????????????????????????????????????? | | ?????????????????????????????????????????????????? | | ?????????????????????????????????????????????????? | | ?????????????????????????????????????????????????? | | ?????????????????????????????????????????????????? | | ?????????????????????????????????????????????????? | | ???????????????????????#########l ????????? | | ???????????????????????# @ g ????????? | | ???????????????????????# ####### g ????????? | | ???????????????????????# #???????????????????????? | | ##?????????????????????# #???????????????????????? | | #?????????????????????# #???????????????????????? | | #?????????????????????# #???????????????????????? | | #?????????????????????# #???????????????????????? | | #?????????#####???????# #???????????????????????? | | ########### ##??????# #???????????????????????? | | ###????# ###### #????????????????? | | ### ####### ##???# #????????????????? | | #?# #?????## ##### ########????????????????? | | #?# #??????### #???????????????????????? | | #?# #????????## #### #???????????????????????? | | #?# #????????## #??# #???????????????????????? | | #?# #???????## ! ####*#???????????????????????? | | ### #?????### !%* /= #???????????????????????? | | ## ##?# % #### #???????????????????????? | | ### ### # #??# ??????????????????????? | | ## #?## ## #??#####?????????????????????? | | #??###?# ????????????????????????????? | | ### #?????? ???????????????????????????? | | # ##?# #?????# ???????????????????????????? | | ### *#??# ###???# ???????????????????????????? | | ??# #??# # #???## ??????????????????????????? | +----------------------------------------------------+ Best States ------------- Heat Dissipation 28 Energy Generation 14 Energy Capacity 280 Matter Stores 300 Matter Capacity 300 Sight Range 16 Terrain Scan Density 10 Armor Coverage 150 Core Shielding 20 Evasion (%) 55 Targeting Accuracy 5 Recoil Reduction 4 Item Schematics ----------------- None Robot Schematics ------------------ None Fabricated ------------ Nothing Repaired ---------- Nothing Alien Tech Used ----------------- None Achievements -------------- None Challenges ------------ None Game ------ Seed HeavySurveybotPenetrator Manual? 0 Play Time 00:38:36 Cumulative 106.8 hours Start 2025.08.25 @ 13:59:57 End 2025.08.25 @ 14:35:00 Sessions 1 Manual Loads 0 Difficulty Rogue Special Mode None Game No. 98 Rogue 98 Adventurer 0 Explorer 0 Win Type - Total 3 Types 3/0/0/0/0/0/0/0/0/0 Lore% 55 Gallery% 51 Achievement% 51 Wizard Run 0 Options --------- Layout 1 ASCII 0 Keyboard 1 Movement Arrows Keybinds 0 Fullscreen 1 Font 24/Smallcaps Map View 50x40 Zoom Use 0% Tactical HUD 1 Map Filters NONE Filters NONE Steam 1 RUN: 6f5b333b-e4ce-4b11-89e0-24aa0b2f69e3